[Event "NJSK 2026 Jeugd B"]
[Site "Helmond, Netherlands"]
[Date "2026.05.01"]
[Round "7.6"]
[White "Grooten, Tommy"]
[Black "Wierenga, Luuk"]
[Result "1-0"]
[TimeControl "90min/40moves + 30min + 30sec/move"]
[WhiteTitle "-"]
[BlackTitle "-"]
[WhiteFideId "1068806"]
[BlackFideId "1094874"]
[WhiteElo "2347"]
[BlackElo "1977"]

1. Nf3 {[%clk 01:30:56]} {[%emt 00:00:03]} d5 {[%clk 01:30:54]} {[%emt
00:00:06]} 2. g3 {[%clk 01:30:50]} {[%emt 00:00:37]} Nf6 {[%clk 01:31:01]}
{[%emt 00:00:23]} 3. Bg2 {[%clk 01:31:16]} {[%emt 00:00:04]} c6 {[%clk
01:31:15]} {[%emt 00:00:16]} 4. O-O {[%clk 01:31:39]} {[%emt 00:00:06]} Bf5
{[%clk 01:30:37]} {[%emt 00:01:08]} 5. d3 {[%clk 01:29:25]} {[%emt 00:02:45]}
h6 {[%clk 01:30:25]} {[%emt 00:00:41]} 6. Nbd2 {[%clk 01:25:49]} {[%emt
00:04:06]} e6 {[%clk 01:30:41]} {[%emt 00:00:15]} 7. c4 {[%clk 01:25:18]}
{[%emt 00:01:01]} Be7 {[%clk 01:28:07]} {[%emt 00:03:03]} 8. Qb3 {[%clk
01:25:03]} {[%emt 00:00:45]} Qb6 {[%clk 01:24:29]} {[%emt 00:04:08]} 9. cxd5
{[%clk 01:23:01]} {[%emt 00:02:33]} Qxb3 {[%clk 01:17:59]} {[%emt 00:07:00]} 10.
Nxb3 {[%clk 01:22:08]} {[%emt 00:01:21]} exd5 {[%clk 01:17:17]} {[%emt
00:01:13]} 11. Be3 {[%clk 01:21:08]} {[%emt 00:01:31]} a5 {[%clk 01:07:30]}
{[%emt 00:10:17]} 12. Nc5 {[%clk 01:15:10]} {[%emt 00:06:28]} Bc8 {[%clk
01:05:14]} {[%emt 00:02:45]} 13. Rac1 {[%clk 01:11:46]} {[%emt 00:03:53]} Nbd7
{[%clk 01:01:41]} {[%emt 00:04:03]} 14. Na4 {[%clk 01:10:39]} {[%emt 00:01:38]}
Ng4 {[%clk 00:51:00]} {[%emt 00:11:11]} 15. Bd4 {[%clk 01:09:37]} {[%emt
00:01:32]} Bf6 {[%clk 00:50:48]} {[%emt 00:00:43]} 16. Bh3 {[%clk 01:08:48]}
{[%emt 00:01:19]} Bxd4 {[%clk 00:40:28]} {[%emt 00:10:50]} 17. Nxd4 {[%clk
01:08:42]} {[%emt 00:00:35]} Ngf6 {[%clk 00:40:50]} {[%emt 00:00:07]} 18. Rfe1
{[%clk 01:03:33]} {[%emt 00:05:40]} O-O {[%clk 00:38:41]} {[%emt 00:02:39]} 19.
Nf5 {[%clk 01:03:20]} {[%emt 00:00:43]} Kh7 {[%clk 00:35:29]} {[%emt 00:03:42]}
20. Nd6 {[%clk 01:02:34]} {[%emt 00:01:15]} Kg8 {[%clk 00:31:46]} {[%emt
00:04:13]} 21. Nc5 {[%clk 00:45:36]} {[%emt 00:17:27]} Nxc5 {[%clk 00:26:38]}
{[%emt 00:05:40]} 22. Bxc8 {[%clk 00:44:53]} {[%emt 00:01:12]} Rd8 {[%clk
00:24:37]} {[%emt 00:02:32]} 23. Rxc5 {[%clk 00:43:57]} {[%emt 00:01:25]} Rxd6
{[%clk 00:24:45]} {[%emt 00:00:23]} 24. Bxb7 {[%clk 00:44:19]} {[%emt
00:00:09]} Rb8 {[%clk 00:25:08]} {[%emt 00:00:07]} 25. Bxc6 {[%clk 00:43:55]}
{[%emt 00:00:54]} Rxb2 {[%clk 00:24:54]} {[%emt 00:00:44]} 26. a4 {[%clk
00:44:00]} {[%emt 00:00:24]} Ra2 {[%clk 00:18:13]} {[%emt 00:07:13]} 27. Bb5
{[%clk 00:40:36]} {[%emt 00:03:54]} Re6 {[%clk 00:16:59]} {[%emt 00:01:44]} 28.
Kf1 {[%clk 00:40:20]} {[%emt 00:00:45]} h5 {[%clk 00:15:15]} {[%emt 00:02:16]}
29. Rc8+ {[%clk 00:39:43]} {[%emt 00:01:07]} Kh7 {[%clk 00:15:31]} {[%emt
00:00:14]} 30. h3 {[%clk 00:38:49]} {[%emt 00:01:22]} h4 {[%clk 00:14:15]}
{[%emt 00:01:48]} 31. g4 {[%clk 00:38:11]} {[%emt 00:01:07]} Ng8 {[%clk
00:12:57]} {[%emt 00:01:49]} 32. Ra8 {[%clk 00:37:35]} {[%emt 00:01:06]} Ne7
{[%clk 00:12:58]} {[%emt 00:00:29]} 33. Rxa5 {[%clk 00:37:51]} {[%emt
00:00:14]} f5 {[%clk 00:09:43]} {[%emt 00:03:44]} 34. Bd7 {[%clk 00:35:48]}
{[%emt 00:02:33]} Re5 {[%clk 00:10:06]} {[%emt 00:00:08]} 35. e3 {[%clk
00:26:35]} {[%emt 00:09:43]} fxg4 {[%clk 00:10:02]} {[%emt 00:00:34]} 36. Bxg4
{[%clk 00:26:31]} {[%emt 00:00:33]} Nc6 {[%clk 00:07:58]} {[%emt 00:02:36]} 37.
Rc5 {[%clk 00:26:22]} {[%emt 00:00:38]} Nb4 {[%clk 00:08:03]} {[%emt 00:00:25]}
38. d4 {[%clk 00:26:41]} {[%emt 00:00:11]} Re7 {[%clk 00:07:36]} {[%emt
00:00:57]} 39. Rb1 {[%clk 00:24:13]} {[%emt 00:02:57]} Rf7 {[%clk 00:04:16]}
{[%emt 00:03:51]} 40. Be2 {[%clk 00:24:30]} {[%emt 00:00:13]} Rxa4 {[%clk
00:02:44]} {[%emt 00:02:01]} 41. Rb5 {[%clk 00:24:27]} {[%emt 00:00:34]} Nc6
{[%clk 00:01:34]} {[%emt 00:01:40]} 42. Rxd5 {[%clk 00:24:14]} {[%emt
00:00:43]} g6 {[%clk 00:01:56]} {[%emt 00:00:08]} 43. Rd6 {[%clk 00:23:09]}
{[%emt 00:01:34]} Nb4 {[%clk 00:01:50]} {[%emt 00:00:36]} 44. Rb6 {[%clk
00:21:30]} {[%emt 00:02:10]} Nd5 {[%clk 00:01:30]} {[%emt 00:00:50]} 45. Rb7
{[%clk 00:21:02]} {[%emt 00:00:58]} Ra7 {[%clk 00:00:55]} {[%emt 00:01:06]} 46.
Rxa7 {[%clk 00:20:43]} {[%emt 00:00:49]} Rxa7 {[%clk 00:01:18]} {[%emt
00:00:06]} 47. Bf3 {[%clk 00:21:03]} {[%emt 00:00:09]} 1-0

[Event "NJSK 2026 Jeugd B"]
[Site "Helmond, Netherlands"]
[Date "2026.05.01"]
[Round "7.7"]
[White "Hallibert, Emilien"]
[Black "Roebers, Bregje"]
[Result "1-0"]
[TimeControl "90min/40moves + 30min + 30sec/move"]
[WhiteTitle "-"]
[BlackTitle "-"]
[WhiteFideId "1092561"]
[BlackFideId "1085174"]
[WhiteElo "1975"]
[BlackElo "1945"]

1. Nf3 {[%clk 01:30:56]} {[%emt 00:00:03]} d6 {[%clk 01:30:20]} {[%emt
00:00:40]} 2. g3 {[%clk 01:31:14]} {[%emt 00:00:11]} g6 {[%clk 01:29:49]}
{[%emt 00:01:01]} 3. Bg2 {[%clk 01:31:39]} {[%emt 00:00:05]} Bg7 {[%clk
01:30:11]} {[%emt 00:00:09]} 4. O-O {[%clk 01:32:02]} {[%emt 00:00:06]} e5
{[%clk 01:28:44]} {[%emt 00:01:58]} 5. d3 {[%clk 01:32:18]} {[%emt 00:00:13]}
f5 {[%clk 01:27:11]} {[%emt 00:02:04]} 6. c4 {[%clk 01:32:42]} {[%emt
00:00:06]} Nc6 {[%clk 01:25:09]} {[%emt 00:02:32]} 7. Nc3 {[%clk 01:32:47]}
{[%emt 00:00:24]} Nf6 {[%clk 01:23:31]} {[%emt 00:02:09]} 8. Rb1 {[%clk
01:32:52]} {[%emt 00:00:25]} a5 {[%clk 01:23:38]} {[%emt 00:00:22]} 9. a3
{[%clk 01:33:15]} {[%emt 00:00:07]} O-O {[%clk 01:23:18]} {[%emt 00:00:51]} 10.
b4 {[%clk 01:33:39]} {[%emt 00:00:05]} axb4 {[%clk 01:23:08]} {[%emt 00:00:41]}
11. axb4 {[%clk 01:34:05]} {[%emt 00:00:04]} Qe8 {[%clk 01:23:24]} {[%emt
00:00:14]} 12. Nd5 {[%clk 01:25:15]} {[%emt 00:09:19]} Nxd5 {[%clk 01:21:19]}
{[%emt 00:02:36]} 13. cxd5 {[%clk 01:24:59]} {[%emt 00:00:46]} Na7 {[%clk
01:21:44]} {[%emt 00:00:05]} 14. Nd2 {[%clk 01:18:30]} {[%emt 00:06:58]} Nb5
{[%clk 01:20:54]} {[%emt 00:01:21]} 15. Bb2 {[%clk 01:17:34]} {[%emt 00:01:26]}
g5 {[%clk 01:08:27]} {[%emt 00:12:57]} 16. Ra1 {[%clk 01:11:01]} {[%emt
00:07:02]} Rb8 {[%clk 01:06:53]} {[%emt 00:02:05]} 17. Nc4 {[%clk 01:10:37]}
{[%emt 00:00:51]} f4 {[%clk 00:57:59]} {[%emt 00:09:26]} 18. Na3 {[%clk
01:08:20]} {[%emt 00:02:47]} g4 {[%clk 00:54:04]} {[%emt 00:04:25]} 19. Be4
{[%clk 01:03:44]} {[%emt 00:05:06]} Nxa3 {[%clk 00:48:54]} {[%emt 00:05:41]} 20.
Rxa3 {[%clk 01:03:57]} {[%emt 00:00:16]} Qh5 {[%clk 00:48:51]} {[%emt
00:00:33]} 21. Rc3 {[%clk 00:59:02]} {[%emt 00:05:25]} Rf6 {[%clk 00:33:57]}
{[%emt 00:15:25]} 22. Rxc7 {[%clk 00:54:39]} {[%emt 00:04:52]} Rh6 {[%clk
00:32:22]} {[%emt 00:02:06]} 23. h4 {[%clk 00:54:20]} {[%emt 00:00:49]} Bf5
{[%clk 00:24:11]} {[%emt 00:08:41]} 24. Bxf5 {[%clk 00:46:35]} {[%emt
00:08:15]} Qxf5 {[%clk 00:24:27]} {[%emt 00:00:14]} 25. e4 {[%clk 00:46:48]}
{[%emt 00:00:17]} Qh5 {[%clk 00:22:20]} {[%emt 00:02:37]} 26. Qc2 {[%clk
00:45:38]} {[%emt 00:01:40]} Rf8 {[%clk 00:22:00]} {[%emt 00:00:50]} 27. Rc8
{[%clk 00:44:48]} {[%emt 00:01:21]} Rhf6 {[%clk 00:20:41]} {[%emt 00:01:51]} 28.
Rxf8+ {[%clk 00:41:37]} {[%emt 00:03:40]} Rxf8 {[%clk 00:20:18]} {[%emt
00:00:53]} 29. Qc7 {[%clk 00:40:08]} {[%emt 00:01:58]} Qh6 {[%clk 00:16:17]}
{[%emt 00:04:31]} 30. Bc1 {[%clk 00:28:34]} {[%emt 00:12:04]} Qf6 {[%clk
00:15:08]} {[%emt 00:01:39]} 31. Qd7 {[%clk 00:27:46]} {[%emt 00:01:18]} fxg3
{[%clk 00:14:31]} {[%emt 00:01:08]} 32. Qxg4 {[%clk 00:26:42]} {[%emt
00:01:34]} gxf2+ {[%clk 00:13:49]} {[%emt 00:01:12]} 33. Kg2 {[%clk 00:27:03]}
{[%emt 00:00:08]} Qg6 {[%clk 00:13:51]} {[%emt 00:00:28]} 34. Qxg6 {[%clk
00:26:56]} {[%emt 00:00:37]} hxg6 {[%clk 00:14:17]} {[%emt 00:00:05]} 35. Bg5
{[%clk 00:26:33]} {[%emt 00:00:51]} Rc8 {[%clk 00:12:13]} {[%emt 00:02:35]} 36.
Be7 {[%clk 00:22:07]} {[%emt 00:04:55]} Rc3 {[%clk 00:06:49]} {[%emt 00:05:55]}
37. Bxd6 {[%clk 00:21:55]} {[%emt 00:00:42]} Rxd3 {[%clk 00:07:14]} {[%emt
00:00:05]} 38. Rxf2 {[%clk 00:21:14]} {[%emt 00:01:11]} Rd4 {[%clk 00:05:51]}
{[%emt 00:01:53]} 39. Re2 {[%clk 00:14:58]} {[%emt 00:06:47]} Bf6 {[%clk
00:04:28]} {[%emt 00:01:53]} 40. Rf2 {[%clk 00:06:53]} {[%emt 00:08:35]} Kg7
{[%clk 00:03:24]} {[%emt 00:01:34]} 41. Re2 {[%clk 00:01:27]} {[%emt 00:05:56]}
Kh6 {[%clk 00:02:50]} {[%emt 00:01:03]} 42. Kf3 {[%clk 00:29:36]} {[%emt
00:02:21]} Kh5 {[%clk 00:32:34]} {[%emt 00:00:46]} 43. Bc5 {[%clk 00:28:19]}
{[%emt 00:01:48]} Rd3+ {[%clk 00:31:48]} {[%emt 00:01:15]} 44. Re3 {[%clk
00:27:57]} {[%emt 00:00:52]} Rd2 {[%clk 00:30:27]} {[%emt 00:01:51]} 45. Ra3
{[%clk 00:27:34]} {[%emt 00:00:53]} Kxh4 {[%clk 00:26:50]} {[%emt 00:04:08]} 46.
Ra1 {[%clk 00:26:16]} {[%emt 00:01:47]} Kh5 {[%clk 00:18:24]} {[%emt 00:08:56]}
47. Rh1+ {[%clk 00:25:40]} {[%emt 00:01:05]} Bh4 {[%clk 00:18:48]} {[%emt
00:00:07]} 48. Bd6 {[%clk 00:24:21]} {[%emt 00:01:49]} Rd3+ {[%clk 00:13:26]}
{[%emt 00:05:52]} 49. Ke2 {[%clk 00:24:28]} {[%emt 00:00:22]} Rd4 {[%clk
00:13:44]} {[%emt 00:00:12]} 50. Ke3 {[%clk 00:24:35]} {[%emt 00:00:22]} Kg4
{[%clk 00:13:40]} {[%emt 00:00:35]} 51. Rg1+ {[%clk 00:24:29]} {[%emt
00:00:35]} Kh5 {[%clk 00:14:04]} {[%emt 00:00:07]} 52. Bxe5 {[%clk 00:24:37]}
{[%emt 00:00:22]} Rxb4 {[%clk 00:14:21]} {[%emt 00:00:13]} 53. Rd1 {[%clk
00:17:49]} {[%emt 00:07:18]} Bd8 {[%clk 00:12:14]} {[%emt 00:02:37]} 54. Bd6
{[%clk 00:15:31]} {[%emt 00:02:48]} Ra4 {[%clk 00:11:01]} {[%emt 00:01:43]} 55.
e5 {[%clk 00:14:45]} {[%emt 00:01:15]} 1-0

[Event "NJSK 2026 Jeugd B"]
[Site "Helmond, Netherlands"]
[Date "2026.05.01"]
[Round "7.8"]
[White "Woldhuis, Marnik"]
[Black "Etienne, Ghilon"]
[Result "0-1"]
[TimeControl "90min/40moves + 30min + 30sec/move"]
[WhiteTitle "-"]
[BlackTitle "-"]
[WhiteFideId "1087096"]
[BlackFideId "1084267"]
[WhiteElo "1939"]
[BlackElo "1976"]

1. b4 {[%clk 01:30:57]} {[%emt 00:00:02]} e5 {[%clk 01:30:56]} {[%emt
00:00:05]} 2. Bb2 {[%clk 01:31:24]} {[%emt 00:00:03]} Bxb4 {[%clk 01:31:22]}
{[%emt 00:00:04]} 3. Bxe5 {[%clk 01:31:50]} {[%emt 00:00:04]} Nf6 {[%clk
01:31:47]} {[%emt 00:00:05]} 4. e3 {[%clk 01:32:15]} {[%emt 00:00:05]} O-O
{[%clk 01:32:07]} {[%emt 00:00:10]} 5. Nf3 {[%clk 01:32:28]} {[%emt 00:00:16]}
d5 {[%clk 01:32:23]} {[%emt 00:00:14]} 6. Be2 {[%clk 01:32:47]} {[%emt
00:00:11]} c5 {[%clk 01:32:48]} {[%emt 00:00:05]} 7. O-O {[%clk 01:32:49]}
{[%emt 00:00:28]} Nc6 {[%clk 01:33:15]} {[%emt 00:00:03]} 8. Bb2 {[%clk
01:33:05]} {[%emt 00:00:14]} Ba5 {[%clk 01:33:42]} {[%emt 00:00:04]} 9. d3
{[%clk 01:32:36]} {[%emt 00:00:59]} d4 {[%clk 01:34:06]} {[%emt 00:00:06]} 10.
exd4 {[%clk 01:18:43]} {[%emt 00:14:22]} cxd4 {[%clk 01:33:47]} {[%emt
00:00:50]} 11. c3 {[%clk 01:17:34]} {[%emt 00:01:39]} dxc3 {[%clk 01:30:35]}
{[%emt 00:03:42]} 12. Nxc3 {[%clk 01:16:25]} {[%emt 00:01:38]} Re8 {[%clk
01:30:29]} {[%emt 00:00:37]} 13. Rc1 {[%clk 01:07:22]} {[%emt 00:09:32]} Bg4
{[%clk 01:22:53]} {[%emt 00:08:06]} 14. h3 {[%clk 00:54:14]} {[%emt 00:13:37]}
Bh5 {[%clk 01:22:02]} {[%emt 00:01:19]} 15. g4 {[%clk 00:50:34]} {[%emt
00:04:12]} Bg6 {[%clk 01:21:15]} {[%emt 00:01:17]} 16. d4 {[%clk 00:49:33]}
{[%emt 00:01:31]} Nd5 {[%clk 01:19:17]} {[%emt 00:02:29]} 17. Nxd5 {[%clk
00:47:50]} {[%emt 00:02:12]} Qxd5 {[%clk 01:19:43]} {[%emt 00:00:04]} 18. Bc4
{[%clk 00:46:31]} {[%emt 00:01:49]} Qd6 {[%clk 01:19:39]} {[%emt 00:00:34]} 19.
Ne5 {[%clk 00:45:34]} {[%emt 00:01:28]} Nxe5 {[%clk 01:13:14]} {[%emt
00:06:55]} 20. dxe5 {[%clk 00:45:47]} {[%emt 00:00:15]} Qe7 {[%clk 01:13:26]}
{[%emt 00:00:19]} 21. Qb3 {[%clk 00:38:50]} {[%emt 00:07:27]} h5 {[%clk
01:06:18]} {[%emt 00:07:38]} 22. f4 {[%clk 00:34:38]} {[%emt 00:04:42]} hxg4
{[%clk 00:55:44]} {[%emt 00:11:05]} 23. f5 {[%clk 00:30:39]} {[%emt 00:04:28]}
Bh5 {[%clk 00:37:55]} {[%emt 00:18:19]} 24. f6 {[%clk 00:21:45]} {[%emt
00:09:26]} Qb4 {[%clk 00:35:07]} {[%emt 00:03:18]} 25. Qxb4 {[%clk 00:14:01]}
{[%emt 00:08:14]} Bxb4 {[%clk 00:35:32]} {[%emt 00:00:06]} 26. hxg4 {[%clk
00:14:04]} {[%emt 00:00:26]} Bxg4 {[%clk 00:32:51]} {[%emt 00:03:11]} 27. Bxf7+
{[%clk 00:12:11]} {[%emt 00:02:23]} Kxf7 {[%clk 00:33:04]} {[%emt 00:00:17]} 28.
Rc4 {[%clk 00:12:24]} {[%emt 00:00:17]} Be2 {[%clk 00:30:03]} {[%emt 00:03:32]}
29. Rxb4 {[%clk 00:11:50]} {[%emt 00:01:04]} Bxf1 {[%clk 00:30:25]} {[%emt
00:00:08]} 30. Rxb7+ {[%clk 00:12:02]} {[%emt 00:00:18]} Ke6 {[%clk 00:30:10]}
{[%emt 00:00:46]} 31. Kxf1 {[%clk 00:10:49]} {[%emt 00:01:43]} Rab8 {[%clk
00:16:03]} {[%emt 00:14:37]} 32. Rxb8 {[%clk 00:10:24]} {[%emt 00:00:55]} Rxb8
{[%clk 00:16:29]} {[%emt 00:00:04]} 33. fxg7 {[%clk 00:10:47]} {[%emt
00:00:07]} Rg8 {[%clk 00:16:18]} {[%emt 00:00:40]} 34. Ba3 {[%clk 00:03:39]}
{[%emt 00:07:39]} Rxg7 {[%clk 00:12:52]} {[%emt 00:03:56]} 35. Bd6 {[%clk
00:04:05]} {[%emt 00:00:04]} Rb7 {[%clk 00:13:14]} {[%emt 00:00:08]} 36. a3
{[%clk 00:04:32]} {[%emt 00:00:04]} Rb2 {[%clk 00:13:38]} {[%emt 00:00:06]} 37.
Ke1 {[%clk 00:04:56]} {[%emt 00:00:06]} Kd5 {[%clk 00:13:51]} {[%emt 00:00:17]}
38. Kf1 {[%clk 00:03:39]} {[%emt 00:01:46]} Ke4 {[%clk 00:11:15]} {[%emt
00:03:05]} 39. e6 {[%clk 00:03:58]} {[%emt 00:00:12]} Kf3 {[%clk 00:10:54]}
{[%emt 00:00:51]} 40. Kg1 {[%clk 00:04:21]} {[%emt 00:00:07]} Rg2+ {[%clk
00:10:12]} {[%emt 00:01:12]} 41. Kh1 {[%clk 00:04:15]} {[%emt 00:00:36]} a6
{[%clk 00:03:25]} {[%emt 00:07:17]} 42. e7 {[%clk 00:02:07]} {[%emt 00:02:39]}
Rg8 {[%clk 00:02:43]} {[%emt 00:01:12]} 43. Bc7 {[%clk 00:30:18]} {[%emt
00:02:19]} Re8 {[%clk 00:33:04]} {[%emt 00:00:09]} 44. Bd6 {[%clk 00:30:22]}
{[%emt 00:00:26]} Rg8 {[%clk 00:14:16]} {[%emt 00:19:18]} 45. Kh2 {[%clk
00:28:56]} {[%emt 00:01:55]} Rc8 {[%clk 00:05:07]} {[%emt 00:09:39]} 46. Kg1
{[%clk 00:26:29]} {[%emt 00:02:57]} Rc1+ {[%clk 00:05:08]} {[%emt 00:00:30]} 47.
Kh2 {[%clk 00:26:53]} {[%emt 00:00:06]} Re1 {[%clk 00:05:34]} {[%emt 00:00:05]}
48. Bb4 {[%clk 00:26:53]} {[%emt 00:00:29]} Re6 {[%clk 00:05:28]} {[%emt
00:00:36]} 49. Kg1 {[%clk 00:27:17]} {[%emt 00:00:06]} Re5 {[%clk 00:03:48]}
{[%emt 00:02:11]} 50. Kf1 {[%clk 00:27:01]} {[%emt 00:00:46]} Re2 {[%clk
00:03:27]} {[%emt 00:00:51]} 51. Kg1 {[%clk 00:26:51]} {[%emt 00:00:39]} Re6
{[%clk 00:03:05]} {[%emt 00:00:53]} 52. Kf1 {[%clk 00:27:06]} {[%emt 00:00:15]}
Re4 {[%clk 00:02:00]} {[%emt 00:01:35]} 53. Bc5 {[%clk 00:27:09]} {[%emt
00:00:27]} Re2 {[%clk 00:02:01]} {[%emt 00:00:29]} 54. Bb4 {[%clk 00:27:19]}
{[%emt 00:00:19]} Re6 {[%clk 00:02:09]} {[%emt 00:00:24]} 55. Kg1 {[%clk
00:00:00]} {[%emt 00:03:00]} Kg3 {[%clk 00:04:10]} {[%emt 00:01:58]} 56. Kf1
{[%clk 00:26:50]} {[%emt 00:00:25]} Re3 {[%clk 00:03:36]} {[%emt 00:01:04]} 57.
Kg1 {[%clk 00:26:47]} {[%emt 00:00:33]} Re2 {[%clk 00:02:43]} {[%emt 00:01:23]}
58. Kf1 {[%clk 00:26:26]} {[%emt 00:00:51]} Re6 {[%clk 00:02:46]} {[%emt
00:00:28]} 59. Kg1 {[%clk 00:25:58]} {[%emt 00:00:58]} Kf3 {[%clk 00:02:03]}
{[%emt 00:01:13]} 60. Kf1 {[%clk 00:26:03]} {[%emt 00:00:25]} Ke3 {[%clk
00:02:29]} {[%emt 00:00:04]} 61. Ke1 {[%clk 00:26:10]} {[%emt 00:00:22]} Kd3+
{[%clk 00:02:26]} {[%emt 00:00:33]} 62. Kd1 {[%clk 00:26:32]} {[%emt 00:00:08]}
Kc4 {[%clk 00:02:45]} {[%emt 00:00:12]} 63. Kc2 {[%clk 00:26:11]} {[%emt
00:00:50]} Re2+ {[%clk 00:02:31]} {[%emt 00:00:44]} 64. Kd1 {[%clk 00:26:33]}
{[%emt 00:00:08]} Re6 {[%clk 00:02:15]} {[%emt 00:00:46]} 65. Kc2 {[%clk
00:26:58]} {[%emt 00:00:05]} Kb5 {[%clk 00:02:40]} {[%emt 00:00:05]} 66. Kb3
{[%clk 00:24:20]} {[%emt 00:03:08]} Re3+ {[%clk 00:03:06]} {[%emt 00:00:05]} 67.
Kb2 {[%clk 00:24:15]} {[%emt 00:00:34]} a5 {[%clk 00:03:32]} {[%emt 00:00:04]}
68. Bd6 {[%clk 00:24:39]} {[%emt 00:00:06]} Kc6 {[%clk 00:03:52]} {[%emt
00:00:10]} 69. Bf4 {[%clk 00:24:51]} {[%emt 00:00:18]} Rxe7 {[%clk 00:04:08]}
{[%emt 00:00:15]} 70. Kb3 {[%clk 00:24:59]} {[%emt 00:00:22]} Re4 {[%clk
00:04:29]} {[%emt 00:00:08]} 71. Bd2 {[%clk 00:25:20]} {[%emt 00:00:09]} Kb5
{[%clk 00:04:54]} {[%emt 00:00:05]} 72. Bc3 {[%clk 00:24:37]} {[%emt 00:01:12]}
Rf4 {[%clk 00:04:32]} {[%emt 00:00:53]} 73. Bd2 {[%clk 00:24:38]} {[%emt
00:00:29]} Rg4 {[%clk 00:04:21]} {[%emt 00:00:41]} 74. Be1 {[%clk 00:24:58]}
{[%emt 00:00:10]} Re4 {[%clk 00:04:06]} {[%emt 00:00:45]} 75. Bd2 {[%clk
00:25:17]} {[%emt 00:00:11]} Rh4 {[%clk 00:04:32]} {[%emt 00:00:05]} 76. Be1
{[%clk 00:24:18]} {[%emt 00:01:28]} Rh3+ {[%clk 00:03:19]} {[%emt 00:01:42]} 77.
Bc3 {[%clk 00:24:35]} {[%emt 00:00:13]} a4+ {[%clk 00:01:10]} {[%emt 00:02:40]}
78. Kb2 {[%clk 00:24:26]} {[%emt 00:00:38]} Kc4 {[%clk 00:01:36]} {[%emt
00:00:04]} 79. Bb4 {[%clk 00:24:50]} {[%emt 00:00:06]} Rh2+ {[%clk 00:01:52]}
{[%emt 00:00:15]} 80. Kb1 {[%clk 00:25:07]} {[%emt 00:00:12]} Kb3 {[%clk
00:02:14]} {[%emt 00:00:08]} 81. Kc1 {[%clk 00:25:33]} {[%emt 00:00:04]} Rc2+
{[%clk 00:02:23]} {[%emt 00:00:21]} 82. Kb1 {[%clk 00:25:52]} {[%emt 00:00:11]}
Rc4 {[%clk 00:02:40]} {[%emt 00:00:13]} 83. Be7 {[%clk 00:26:09]} {[%emt
00:00:13]} Re4 {[%clk 00:02:58]} {[%emt 00:00:12]} 84. Bb4 {[%clk 00:26:35]}
{[%emt 00:00:04]} Rc4 {[%clk 00:03:13]} {[%emt 00:00:15]} 85. Be7 {[%clk
00:26:54]} {[%emt 00:00:11]} Rc8 {[%clk 00:03:25]} {[%emt 00:00:18]} 86. Bb4
{[%clk 00:27:07]} {[%emt 00:00:18]} Rc7 {[%clk 00:03:47]} {[%emt 00:00:07]} 0-1